[Event "Swedish Chess Championship 2021: Junior-SM"]
[Site "Scandic Helsingborg Nord, Florettgatan 41, Helsingborg, Sweden"]
[Date "2021.07.08"]
[Round "6.5"]
[White "Nguyen, Gabriel"]
[Black "Soderstrom, Adrian"]
[Result "0-1"]
[TimeControl "90 minutes for 40 moves + 30 minutes for the rest of the game + 30 seconds per move from move one."]
[BlackTitle "CM"]
[WhiteFideId "1720791"]
[BlackFideId "1745786"]
[WhiteElo "2099"]
[BlackElo "2258"]
1. d4 {[%clk 01:30:57]} {[%emt 00:00:02]} d5 {[%clk 01:30:53]} {[%emt
00:00:07]} 2. Nf3 {[%clk 01:31:18]} {[%emt 00:00:10]} Nf6 {[%clk 01:31:11]}
{[%emt 00:00:11]} 3. c4 {[%clk 01:31:41]} {[%emt 00:00:08]} c6 {[%clk
01:31:34]} {[%emt 00:00:07]} 4. Nc3 {[%clk 01:32:04]} {[%emt 00:00:07]} e6
{[%clk 01:31:59]} {[%emt 00:00:04]} 5. cxd5 {[%clk 01:32:09]} {[%emt 00:00:26]}
exd5 {[%clk 01:32:17]} {[%emt 00:00:13]} 6. Qc2 {[%clk 01:32:25]} {[%emt
00:00:13]} Nbd7 {[%clk 01:18:41]} {[%emt 00:14:04]} 7. Bg5 {[%clk 01:31:56]}
{[%emt 00:01:00]} Qa5 {[%clk 01:15:34]} {[%emt 00:03:37]} 8. e3 {[%clk
01:21:31]} {[%emt 00:10:55]} Ne4 {[%clk 01:14:44]} {[%emt 00:01:18]} 9. Bd3
{[%clk 01:19:12]} {[%emt 00:02:50]} Nxg5 {[%clk 01:13:34]} {[%emt 00:01:40]} 10.
Nxg5 {[%clk 01:19:34]} {[%emt 00:00:09]} h6 {[%clk 01:09:29]} {[%emt 00:04:33]}
11. Nf3 {[%clk 01:19:33]} {[%emt 00:00:32]} Bd6 {[%clk 01:02:54]} {[%emt
00:07:04]} 12. O-O {[%clk 01:16:54]} {[%emt 00:03:09]} O-O {[%clk 00:59:54]}
{[%emt 00:03:26]} 13. a3 {[%clk 01:12:21]} {[%emt 00:05:08]} Qc7 {[%clk
00:55:24]} {[%emt 00:04:59]} 14. Rac1 {[%clk 01:10:43]} {[%emt 00:02:08]} Qd8
{[%clk 00:46:01]} {[%emt 00:09:53]} 15. b4 {[%clk 01:09:48]} {[%emt 00:01:25]}
a5 {[%clk 00:41:50]} {[%emt 00:04:41]} 16. Qb3 {[%clk 01:03:29]} {[%emt
00:06:49]} Qe7 {[%clk 00:36:40]} {[%emt 00:05:38]} 17. Rb1 {[%clk 00:49:19]}
{[%emt 00:14:41]} Nf6 {[%clk 00:33:15]} {[%emt 00:03:55]} 18. h3 {[%clk
00:46:03]} {[%emt 00:03:46]} axb4 {[%clk 00:29:47]} {[%emt 00:03:58]} 19. axb4
{[%clk 00:46:24]} {[%emt 00:00:10]} b5 {[%clk 00:30:00]} {[%emt 00:00:16]} 20.
Nd2 {[%clk 00:41:19]} {[%emt 00:05:35]} Be6 {[%clk 00:27:58]} {[%emt 00:02:31]}
21. Qb2 {[%clk 00:39:51]} {[%emt 00:01:58]} Nd7 {[%clk 00:25:46]} {[%emt
00:02:42]} 22. e4 {[%clk 00:34:05]} {[%emt 00:06:18]} dxe4 {[%clk 00:23:59]}
{[%emt 00:02:16]} 23. Ndxe4 {[%clk 00:26:54]} {[%emt 00:07:41]} Bc7 {[%clk
00:21:53]} {[%emt 00:02:33]} 24. Rbc1 {[%clk 00:19:44]} {[%emt 00:07:43]} Nb6
{[%clk 00:14:02]} {[%emt 00:08:20]} 25. Rfe1 {[%clk 00:14:51]} {[%emt
00:05:24]} Nd5 {[%clk 00:11:23]} {[%emt 00:03:08]} 26. Nc5 {[%clk 00:10:23]}
{[%emt 00:04:59]} Nf4 {[%clk 00:07:31]} {[%emt 00:04:20]} 27. Bf1 {[%clk
00:06:02]} {[%emt 00:04:53]} Qg5 {[%clk 00:06:13]} {[%emt 00:01:47]} 28. Kh1
{[%clk 00:04:20]} {[%emt 00:02:11]} Qh5 {[%clk 00:03:45]} {[%emt 00:02:58]} 29.
Re3 {[%clk 00:02:57]} {[%emt 00:01:53]} Nd5 {[%clk 00:03:36]} {[%emt 00:00:39]}
30. Be2 {[%clk 00:01:34]} {[%emt 00:01:53]} Qg6 {[%clk 00:03:42]} {[%emt
00:00:23]} 31. Bd3 {[%clk 00:01:32]} {[%emt 00:00:33]} Qf6 {[%clk 00:03:35]}
{[%emt 00:00:36]} 32. N3e4 {[%clk 00:01:47]} {[%emt 00:00:17]} Qh4 {[%clk
00:03:38]} {[%emt 00:00:26]} 33. Rf3 {[%clk 00:01:36]} {[%emt 00:00:42]} Bg4
{[%clk 00:03:15]} {[%emt 00:00:53]} 34. Rg3 {[%clk 00:01:42]} {[%emt 00:00:24]}
Bxg3 {[%clk 00:02:41]} {[%emt 00:01:04]} 35. fxg3 {[%clk 00:02:09]} {[%emt
00:00:01]} Qh5 {[%clk 00:02:43]} {[%emt 00:00:28]} 36. Nf2 {[%clk 00:02:07]}
{[%emt 00:00:33]} Bc8 {[%clk 00:02:43]} {[%emt 00:00:29]} 37. Re1 {[%clk
00:01:16]} {[%emt 00:01:22]} Qg5 {[%clk 00:02:33]} {[%emt 00:00:39]} 38. Nfe4
{[%clk 00:01:05]} {[%emt 00:00:41]} Qd8 {[%clk 00:02:59]} {[%emt 00:00:04]} 39.
Kh2 {[%clk 00:00:56]} {[%emt 00:00:40]} Ra7 {[%clk 00:01:46]} {[%emt 00:01:43]}
40. Bb1 {[%clk 00:00:51]} {[%emt 00:00:35]} Bf5 {[%clk 00:01:19]} {[%emt
00:00:57]} 41. Rf1 {[%clk 00:21:31]} {[%emt 00:09:51]} Bg6 {[%clk 00:30:58]}
{[%emt 00:00:50]} 42. Nd2 {[%clk 00:09:34]} {[%emt 00:12:28]} Bxb1 {[%clk
00:30:07]} {[%emt 00:01:19]} 43. Qxb1 {[%clk 00:08:56]} {[%emt 00:01:09]} Qd6
{[%clk 00:27:58]} {[%emt 00:02:38]} 44. Nf3 {[%clk 00:08:30]} {[%emt 00:00:56]}
Ra3 {[%clk 00:17:34]} {[%emt 00:10:54]} 45. Ne5 {[%clk 00:05:06]} {[%emt
00:03:54]} Nf6 {[%clk 00:10:38]} {[%emt 00:07:24]} 46. Qb2 {[%clk 00:03:42]}
{[%emt 00:01:56]} Rfa8 {[%clk 00:10:10]} {[%emt 00:00:58]} 47. Qf2 {[%clk
00:02:50]} {[%emt 00:01:22]} Qd5 {[%clk 00:10:20]} {[%emt 00:00:19]} 48. Qf4
{[%clk 00:02:35]} {[%emt 00:00:45]} Ra2 {[%clk 00:10:14]} {[%emt 00:00:36]} 49.
Rf3 {[%clk 00:02:07]} {[%emt 00:00:57]} Re2 {[%clk 00:08:57]} {[%emt 00:01:46]}
50. Ncd3 {[%clk 00:01:05]} {[%emt 00:01:34]} Raa2 {[%clk 00:09:00]} {[%emt
00:00:27]} 51. Nf2 {[%clk 00:01:23]} {[%emt 00:00:12]} Rad2 {[%clk 00:07:55]}
{[%emt 00:01:33]} 52. Ned3 {[%clk 00:01:20]} {[%emt 00:00:35]} Nd7 {[%clk
00:06:57]} {[%emt 00:01:28]} 53. Qg4 {[%clk 00:00:42]} {[%emt 00:01:08]} Qe6
{[%clk 00:06:34]} {[%emt 00:00:53]} 54. Qh4 {[%clk 00:00:50]} {[%emt 00:00:22]}
Qe7 {[%clk 00:06:29]} {[%emt 00:00:35]} 55. Qg4 {[%clk 00:01:02]} {[%emt
00:00:19]} Nf8 {[%clk 00:06:43]} {[%emt 00:00:16]} 56. h4 {[%clk 00:00:55]}
{[%emt 00:00:38]} Qd7 {[%clk 00:05:46]} {[%emt 00:01:26]} 57. Qh5 {[%clk
00:00:49]} {[%emt 00:00:36]} Qd5 {[%clk 00:05:34]} {[%emt 00:00:41]} 58. Rf5
{[%clk 00:00:56]} {[%emt 00:00:24]} g6 {[%clk 00:04:02]} {[%emt 00:02:01]} 59.
Rxd5 {[%clk 00:00:43]} {[%emt 00:00:43]} gxh5 {[%clk 00:04:31]} {[%emt
00:00:02]} 60. Rxh5 {[%clk 00:00:53]} {[%emt 00:00:20]} Rxf2 {[%clk 00:04:42]}
{[%emt 00:00:18]} 61. Nxf2 {[%clk 00:01:19]} {[%emt 00:00:04]} Rxf2 {[%clk
00:05:08]} {[%emt 00:00:04]} 62. Rxh6 {[%clk 00:01:19]} {[%emt 00:00:30]} Ne6
{[%clk 00:05:34]} {[%emt 00:00:04]} 63. d5 {[%clk 00:00:49]} {[%emt 00:01:00]}
cxd5 {[%clk 00:05:58]} {[%emt 00:00:06]} 64. Rh5 {[%clk 00:01:12]} {[%emt
00:00:07]} Rd2 {[%clk 00:06:05]} {[%emt 00:00:23]} 65. Re5 {[%clk 00:01:14]}
{[%emt 00:00:28]} Kg7 {[%clk 00:06:09]} {[%emt 00:00:25]} 66. Kh3 {[%clk
00:01:22]} {[%emt 00:00:22]} Kf6 {[%clk 00:06:22]} {[%emt 00:00:18]} 67. Re1
{[%clk 00:01:44]} {[%emt 00:00:08]} Rd4 {[%clk 00:05:49]} {[%emt 00:01:03]} 68.
Rf1+ {[%clk 00:02:00]} {[%emt 00:00:14]} Kg6 {[%clk 00:06:11]} {[%emt
00:00:08]} 69. g4 {[%clk 00:02:12]} {[%emt 00:00:18]} Rxb4 {[%clk 00:06:00]}
{[%emt 00:00:41]} 70. h5+ {[%clk 00:02:27]} {[%emt 00:00:14]} Kg7 {[%clk
00:06:25]} {[%emt 00:00:05]} 71. Kh4 {[%clk 00:02:44]} {[%emt 00:00:14]} Re4
{[%clk 00:06:20]} {[%emt 00:00:34]} 72. Rf5 {[%clk 00:01:21]} {[%emt 00:01:54]}
d4 {[%clk 00:06:41]} {[%emt 00:00:09]} 73. Rxb5 {[%clk 00:01:45]} {[%emt
00:00:06]} d3 {[%clk 00:07:08]} {[%emt 00:00:02]} 74. Rb2 {[%clk 00:02:08]}
{[%emt 00:00:08]} Rd4 {[%clk 00:07:15]} {[%emt 00:00:23]} 75. Rd2 {[%clk
00:02:30]} {[%emt 00:00:07]} f5 {[%clk 00:07:37]} {[%emt 00:00:08]} 76. Kh3
{[%clk 00:02:21]} {[%emt 00:00:39]} Rxg4 {[%clk 00:07:54]} {[%emt 00:00:13]} 77.
g3 {[%clk 00:02:28]} {[%emt 00:00:23]} Rd4 {[%clk 00:08:10]} {[%emt 00:00:14]}
78. Kg2 {[%clk 00:02:39]} {[%emt 00:00:19]} Nc5 {[%clk 00:05:51]} {[%emt
00:02:49]} 79. Kf3 {[%clk 00:02:43]} {[%emt 00:00:27]} Nb3 {[%clk 00:05:19]}
{[%emt 00:01:02]} 80. Ke3 {[%clk 00:01:27]} {[%emt 00:01:45]} Re4+ {[%clk
00:05:36]} {[%emt 00:00:14]} 0-1